bitfinex-derivatives/quotes_ETHF0:USTF0_20251003
["timestamp","ask_amount","ask_price","bid_price","bid_amount"]
[1759486089834,0.76070872,4471.9,4471.8,1.35651809]
[1759486090434,0.76070872,4471.9,4471.8,0.00167809]
[1759486090638,1.24475068,4471.9,4471.8,0.62891809]
[1759486090833,1.24475068,4471.9,4471.8,0.83711809]
[1759486091030,1.03965068,4471.9,4471.8,1.38371809]
[1759486091230,0.55560872,4471.9,4471.8,1.38371809]
[1759486095036,1.03952471,4471.9,4471.8,1.38371809]
[1759486097632,1.03952471,4471.9,4471.8,1.15871809]
[1759486097931,1.03952471,4471.9,4471.8,1.38371809]
[1759486098237,1.25562471,4471.9,4471.8,1.38371809]
[1759486099939,1.25562471,4471.9,4471.8,1.04891809]
[1759486100138,1.25562471,4471.9,4471.8,0.82391809]
[1759486100339,1.25562471,4471.9,4471.8,0.83611809]
[1759486100939,1.25562471,4471.9,4471.8,1.17091809]
[1759486102236,1.25562471,4471.9,4471.8,1.38271809]
[1759486103243,1.25562471,4471.9,4471.8,1.04791809]
[1759486104140,1.25562471,4471.9,4471.8,0.83611809]
[1759486105042,0.77170872,4471.9,4471.8,0.83611809]
[1759486107445,0.77170872,4471.9,4471.8,1.15631809]
[1759486108133,1.25540144,4471.9,4471.8,0.83611809]
[1759486108537,1.25540144,4471.9,4471.8,0.22567809]
[1759486109646,1.25540144,4471.9,4471.8,0.62791809]
[1759486110639,1.25540144,4471.9,4471.8,0.83581809]
[1759486114944,1.25540144,4471.9,4471.8,0.61181809]
[1759486115146,1.25540144,4471.9,4471.8,0.83581809]
[1759486117843,1.25540144,4471.9,4471.8,1.37511809]
[1759486118647,1.25540144,4471.9,4471.8,1.05731809]
[1759486118846,1.25540144,4471.9,4471.8,0.83581809]
[1759486121460,1.25540144,4471.9,4471.8,0.61181809]
[1759486121661,1.25540144,4471.9,4471.8,0.83581809]
[1759486122158,1.25540144,4471.9,4471.8,1.15361809]
[1759486122359,1.25540144,4471.9,4471.8,0.83581809]
[1759486123062,1.25540144,4471.9,4471.8,0.40391809]
[1759486123263,1.25540144,4471.9,4471.8,0.83951809]
[1759486127066,1.25540144,4471.9,4471.8,0.61551809]
[1759486127261,1.25540144,4471.9,4471.8,0.83951809]
[1759486127762,1.25540144,4471.9,4471.8,1.15731809]
[1759486128267,1.25540144,4471.9,4471.8,0.83951809]
[1759486129167,1.25540144,4471.9,4471.8,1.15731809]
[1759486129366,0.5552,4472.5,4472.4,0.40218]
[1759486129669,1.36276007,4472.5,4472.4,0.83778]
[1759486130364,1.3643906,4472.5,4472.4,0.62618]
[1759486132961,1.3643906,4472.5,4472.4,0.83778]
[1759486133971,1.3643906,4472.5,4472.4,0.62618]
[1759486138477,1.3643906,4472.5,4472.4,0.83778]
[1759486142481,1.3643906,4472.5,4472.4,0.40218]
[1759486142782,1.3643906,4472.5,4472.4,0.62618]
[1759486145879,1.3643906,4472.5,4472.4,1.13908]
[1759486150576,1.3643906,4472.5,4472.4,1.34768]
[1759486153381,1.3643906,4472.5,4472.4,1.03728]
[1759486155379,1.3643906,4472.5,4472.4,0.2025]
[1759486155578,1.3643906,4472.5,4472.4,0.4265]
[1759486155778,1.3643906,4472.5,4472.4,0.82868]
[1759486157387,1.3643906,4472.5,4472.4,0.2025]
[1759486157588,1.3643906,4472.5,4472.4,0.4265]
[1759486158290,1.3643906,4472.5,4472.4,0.82868]
[1759486164797,1.3643906,4472.5,4472.4,0.4265]
[1759486170195,1.3643906,4472.5,4472.0,0.40222]
[1759486170398,0.7672,4471.9,4471.8,0.00167809]
[1759486170702,1.25036007,4471.9,4471.8,0.84181809]
[1759486170901,1.25036007,4471.9,4471.8,0.61781809]
[1759486171100,1.25036007,4471.9,4471.8,0.84181809]
[1759486171403,1.25036007,4471.9,4471.8,1.34691809]
[1759486172405,1.25036007,4471.9,4471.8,1.12291809]
[1759486172706,1.25036007,4471.9,4471.8,1.34691809]
[1759486173903,1.25036007,4471.9,4471.8,0.00167809]
[1759486174106,1.25036007,4471.9,4471.8,0.22567809]
[1759486174403,1.25036007,4471.9,4471.8,0.62791809]
[1759486174601,1.25036007,4471.9,4471.8,0.22567809]
[1759486175199,1.25036007,4471.9,4471.8,0.00167809]
[1759486175403,1.25036007,4471.9,4471.8,0.22567809]
[1759486178115,1.25036007,4471.9,4471.8,0.00167809]
[1759486179014,1.25036007,4471.9,4471.8,0.22567809]
[1759486179214,1.25036007,4471.9,4471.8,0.62791809]
[1759486179816,1.25036007,4471.9,4471.8,0.84151809]
[1759486182916,1.25036007,4471.9,4471.8,0.00167809]
[1759486205841,0.752,4471.1,4471.0,0.23361652]
[1759486206041,1.23516007,4471.1,4471.0,0.54701652]
[1759486206739,1.23516007,4471.1,4471.0,0.54932878]
[1759486207245,1.23516007,4471.1,4471.0,1.16543878]
[1759486209339,0.48316007,4471.1,4471.0,1.29213878]
[1759486209742,0.80856007,4471.1,4471.0,1.29213878]
[1759486211044,0.80856007,4471.1,4471.0,1.51613878]
[1759486211245,1.23516007,4471.1,4471.0,0.63823878]
[1759486211445,1.23516007,4471.1,4471.0,0.42083878]
[1759486212341,1.23516007,4471.1,4471.0,0.63823878]
[1759486214044,1.23516007,4471.1,4471.0,0.85203878]
[1759486214045,1.02576007,4471.1,4471.0,0.85203878]
[1759486214246,0.7438,4471.3,4471.2,0.83349]
[1759486214445,1.22172859,4471.3,4471.2,1.14689]
[1759486214649,1.02052859,4471.3,4471.2,1.14689]
[1759486215149,0.5426,4471.3,4471.2,1.14689]
[1759486216745,0.5426,4471.3,4471.2,1.37089]
[1759486217353,0.5426,4471.3,4471.2,1.14689]
[1759486217552,0.5426,4471.3,4471.2,1.37089]
[1759486217952,0.5426,4471.3,4471.2,1.14689]
[1759486218154,0.5426,4471.3,4471.2,1.37089]
[1759486218448,0.1789,4471.5,4471.4,0.83347]
[1759486218653,0.2012,4471.5,4471.4,1.14687]
[1759486218950,0.2012,4471.5,4471.4,6.14687]
[1759486221049,0.1789,4471.5,4471.4,6.14687]
[1759486221250,0.3254,4472.1,4472.0,1.14682]
[1759486221452,0.3254,4472.1,4472.0,1.37082]
[1759486221751,0.34813053,4472.5,4472.4,1.14678]
[1759486222053,1.03512615,4472.5,4472.4,1.14678]
[1759486222252,1.36052615,4472.5,4472.4,1.14678]
[1759486224757,1.23122615,4472.5,4472.4,1.14678]
[1759486224959,0.75363053,4472.5,4472.4,1.14678]
[1759486225152,1.23092253,4472.5,4472.4,1.14678]
[1759486225349,1.02152253,4472.5,4472.4,1.14678]
[1759486226458,0.54423053,4472.5,4472.4,1.14678]
[1759486226657,0.00163053,4472.5,4472.4,1.14678]
[1759486227751,0.00163053,4472.5,4472.4,1.37078]
[1759486231963,0.53043053,4472.5,4472.4,1.37078]
[1759486233165,0.88373053,4472.5,4472.4,0.62618]
[1759486233465,0.88373053,4472.5,4472.4,0.84728]
[1759486234060,0.56583053,4472.5,4471.9,0.3051]
[1759486234260,0.88373053,4472.5,4472.2,0.40219]
[1759486234461,0.7512,4472.3,4472.2,0.62329]
[1759486234662,0.7512,4472.3,4472.2,0.4451]
[1759486235064,1.22769283,4472.3,4472.2,0.4451]
[1759486235771,1.22769283,4472.3,4472.2,0.2211]
[1759486236068,1.22769283,4472.3,4472.2,0.4451]
[1759486236668,1.22769283,4472.3,4472.2,0.2211]
[1759486236861,0.3418,4472.0,4471.9,0.92842]
[1759486237165,0.8821,4472.0,4471.9,1.15242]
[1759486237974,0.8821,4472.0,4471.7,0.40224]
[1759486238268,0.8821,4472.0,4471.8,1.15243]
[1759486238269,0.7512,4471.9,4471.8,1.15243]
[1759486238468,0.7512,4471.9,4471.8,1.35703]
[1759486239171,0.7512,4471.9,4471.8,0.9548]
[1759486239567,0.7512,4471.9,4471.8,0.4451]
[1759486239767,0.7512,4471.9,4471.8,0.224]
[1759486240271,1.22723506,4471.9,4471.8,1.15244]
[1759486243469,1.22723506,4471.9,4471.8,0.92844]
[1759486243664,1.22723506,4471.9,4471.8,1.15244]
[1759486245176,0.7512,4471.9,4471.8,1.15244]
[1759486245378,0.7512,4471.9,4471.8,0.5262]
[1759486245573,0.7512,4471.9,4471.8,0.4451]
[1759486245874,0.7512,4471.9,4471.8,0.2211]
[1759486246076,0.7512,4471.9,4471.8,0.4451]
[1759486247478,0.7512,4471.9,4471.8,0.224]
[1759486248273,0.3179,4471.4,4471.0,0.01852878]
[1759486248476,0.7512,4471.1,4471.0,0.94703878]
[1759486248777,0.7512,4471.1,4471.0,1.37563878]
[1759486249373,0.7512,4471.1,4471.0,1.15163878]
[1759486249579,0.7512,4471.1,4471.0,1.37563878]
[1759486249778,0.7512,4471.1,4471.0,1.15163878]
[1759486250076,0.7512,4471.1,4471.0,1.37563878]
[1759486251477,0.5288,4471.1,4471.0,1.37563878]
[1759486255477,0.7512,4471.1,4471.0,1.37563878]
[1759486256067,0.7512,4471.1,4471.0,1.15163878]
[1759486256272,0.7512,4471.1,4471.0,1.37563878]
[1759486261574,0.7512,4471.1,4471.0,1.15163878]
[1759486261778,0.7512,4471.1,4471.0,1.37563878]
[1759486264680,0.7512,4471.1,4471.0,0.42083878]
[1759486264978,0.7512,4471.1,4471.0,1.38643878]
[1759486265782,0.7512,4471.1,4471.0,1.16243878]
[1759486265981,0.7512,4471.1,4471.0,1.38643878]
[1759486266482,0.5288,4471.1,4471.0,1.38643878]
[1759486267278,0.7314,4471.1,4471.0,1.16243878]
[1759486267679,0.7314,4471.1,4471.0,1.38743878]
[1759486270985,0.5288,4471.1,4471.0,1.38743878]
[1759486271185,0.3179,4471.1,4471.0,1.51173878]
[1759486272186,0.3179,4471.1,4471.0,1.51073878]
[1759486272784,0.5226,4471.3,4471.2,1.14389]
[1759486272984,0.7443,4471.3,4471.2,1.14389]
[1759486273286,0.5431,4471.3,4471.2,1.14389]
[1759486273686,0.7457,4471.3,4471.2,1.14389]
[1759486275083,1.22222643,4471.3,4471.2,1.14389]
[1759486275586,0.79792643,4471.3,4471.2,1.14389]
[1759486275884,0.47652643,4471.3,4471.2,1.14389]
[1759486278687,0.79792643,4471.3,4471.2,1.14389]
[1759486278888,0.79792643,4471.3,4471.2,1.36789]
[1759486279188,0.47652643,4471.3,4471.2,1.36789]
[1759486280189,1.01962643,4471.3,4471.2,1.14389]
[1759486280385,1.22222643,4471.3,4471.2,1.36789]
[1759486282886,1.22257254,4471.3,4471.2,1.36789]
[1759486283484,1.22257254,4471.3,4471.2,1.05209]
[1759486284687,1.22257254,4471.3,4471.2,1.36789]
[1759486285090,0.7457,4471.3,4471.2,1.36789]
[1759486288292,1.22282635,4471.3,4471.2,1.36789]
[1759486289388,0.3214,4471.3,4471.2,1.36789]
[1759486289589,0.3214,4471.3,4471.2,1.14389]
[1759486289889,0.3214,4471.3,4471.2,1.36789]
[1759486290590,0.5227,4471.5,4471.4,0.61277]
[1759486290896,0.47718925,4471.5,4471.4,1.13137]
[1759486291194,0.5339,4471.8,4471.7,0.7291]
[1759486291390,1.01111502,4471.8,4471.7,0.9531]
[1759486291693,1.22061502,4471.8,4471.7,1.35534]
[1759486292790,1.22061502,4471.8,4471.7,0.82104]
[1759486293091,1.22061502,4471.8,4471.7,1.04504]
[1759486294283,1.22061502,4471.8,4471.7,1.35684]
[1759486295790,1.22061502,4471.8,4471.7,0.4188]
[1759486296095,1.22061502,4471.8,4471.7,0.6428]
[1759486296283,1.22061502,4471.8,4471.7,0.83674]
[1759486297997,1.22061502,4471.8,4471.7,0.4345]
[1759486298587,0.89911502,4471.8,4471.1,0.3118]
[1759486298798,0.7431,4471.2,4471.1,1.1392]
[1759486299100,0.7431,4471.2,4471.1,1.3632]
[1759486302401,0.7431,4471.2,4471.0,0.01852878]
[1759486302606,0.7431,4471.2,4471.1,0.224]
[1759486302798,1.21954495,4471.2,4471.1,0.224]
[1759486303705,1.21954495,4471.2,4471.1,0.225]
[1759486306197,1.21954495,4471.2,4471.0,0.01852878]
[1759486306402,1.21954495,4471.1,4471.0,0.24252878]
[1759486306809,1.21954495,4471.1,4471.0,0.64483878]
[1759486307306,1.21954495,4471.1,4471.0,0.24252878]
[1759486308912,1.21954495,4471.1,4471.0,0.64483878]
[1759486310113,1.21954495,4471.1,4471.0,0.86773878]
[1759486313010,1.21954495,4471.1,4471.0,1.38173878]
[1759486313210,0.5361,4471.3,4471.2,0.82739]
[1759486313412,1.01211177,4471.3,4471.2,1.13919]
[1759486314415,1.01211177,4471.3,4471.2,1.36319]
[1759486320220,1.21911177,4471.3,4471.2,1.36319]
[1759486320414,1.01211177,4471.3,4471.2,1.36319]
[1759486322621,0.47601177,4471.3,4471.2,1.36319]
[1759486323022,0.5491,4471.5,4471.4,1.14087]
[1759486323221,1.02519281,4471.5,4471.4,1.14087]
[1759486325521,1.00289281,4471.5,4471.4,1.14087]
[1759486326423,0.47609281,4471.5,4471.4,1.14087]
[1759486327326,1.00289281,4471.5,4471.4,1.36487]
[1759486327627,1.20909281,4471.5,4471.4,1.36487]
[1759486329124,0.47609281,4471.5,4471.4,1.36487]
[1759486331732,0.78149281,4471.5,4471.4,1.36487]
[1759486333037,0.47609281,4471.5,4471.4,1.36487]
[1759486333334,0.78149281,4471.5,4471.4,1.36487]
[1759486335039,0.47609281,4471.5,4471.4,1.36487]
[1759486335233,0.728,4471.7,4471.6,1.14085]
[1759486335534,0.5268,4471.7,4471.6,1.14085]
[1759486336330,0.3054,4471.7,4471.6,1.14085]
[1759486336535,0.6577,4472.0,4471.9,1.14083]
[1759486336837,1.13251023,4472.0,4471.9,1.36483]
[1759486337436,0.47481023,4472.0,4471.9,1.36483]
[1759486338131,0.5268,4472.3,4472.2,1.1408]
[1759486338336,1.00153657,4472.3,4472.2,1.1408]
[1759486345335,0.78013657,4472.3,4472.2,1.1408]
[1759486345738,0.18043053,4472.5,4472.2,1.1408]
[1759486345739,0.18043053,4472.5,4472.4,0.40218]
[1759486345939,0.69773053,4472.5,4472.4,1.37858]
[1759486346241,0.99345124,4472.5,4472.4,1.37858]
[1759486347537,1.20065124,4472.5,4472.4,1.37858]
[1759486347844,1.33245124,4472.5,4472.4,1.37858]
[1759486349148,1.33245124,4472.5,4472.4,0.9764]
[1759486349942,1.33245124,4472.5,4472.4,1.37858]
[1759486351337,1.20065124,4472.5,4472.4,1.37858]
[1759486351537,0.51893053,4472.5,4472.4,1.37858]
[1759486352032,0.30873053,4472.5,4472.4,1.37858]
[1759486352237,0.00163053,4472.5,4472.4,1.37858]
[1759486358146,0.00163053,4472.5,4472.4,1.15458]
[1759486358342,0.00163053,4472.5,4472.4,1.37858]
[1759486359648,0.00163053,4472.5,4472.4,1.15458]
[1759486359947,0.00163053,4472.5,4472.4,1.37858]
[1759486365146,0.47474616,4472.5,4472.4,1.37858]
[1759486368550,0.47474616,4472.5,4472.4,1.15458]
[1759486368751,0.47474616,4472.5,4472.4,1.37858]
[1759486375151,0.00163053,4472.5,4472.4,1.37858]
[1759486375451,0.00163053,4472.5,4472.4,2.58249543]
[1759486376851,0.00163053,4472.5,4472.4,2.35849543]
[1759486377053,0.00163053,4472.5,4472.4,2.58249543]
[1759486378453,0.32013053,4472.5,4472.4,2.58249543]
[1759486379557,0.00163053,4472.5,4472.4,2.58249543]
[1759486380749,0.00163053,4472.5,4472.4,1.37858]
[1759486380954,0.00163053,4472.5,4472.4,2.74969022]
[1759486381148,0.00163053,4472.5,4472.4,37.85269022]
[1759486381354,0.00163053,4472.5,4472.4,37.86565465]
[1759486382961,0.00163053,4472.5,4472.4,36.25758]
[1759486385163,0.00163053,4472.5,4472.4,37.86469098]
[1759486385358,0.00163053,4472.5,4472.4,36.25758]
[1759486390956,0.00163053,4472.5,4472.4,1.15458]
[1759486391258,0.90343053,4472.5,4472.4,35.71598]
[1759486391559,0.90343053,4472.5,4472.4,36.05208]
[1759486392462,0.76993053,4472.5,4472.4,36.05208]
[1759486393762,0.55443053,4472.5,4472.4,36.05208]
[1759486394062,0.33473053,4472.5,4472.4,36.05208]
[1759486396064,0.55443053,4472.5,4472.4,1.17028]
[1759486396260,0.90343053,4472.5,4472.4,0.2138]
[1759486396564,0.57033053,4472.5,4472.4,0.62618]
[1759486396754,5.57033053,4472.5,4472.4,0.224]
[1759486396960,5.90343053,4472.5,4472.4,0.62618]
[1759486398462,0.76993053,4472.5,4472.4,1.38348]
[1759486398764,0.55443053,4472.5,4472.4,1.38348]
[1759486401760,0.76993053,4472.5,4472.4,1.38348]
[1759486401967,0.90343053,4472.5,4472.4,1.38348]
[1759486402765,0.90343053,4472.5,4472.4,1.15948]
[1759486402962,0.90343053,4472.5,4472.4,1.38348]
[1759486415776,0.90343053,4472.5,4472.4,0.60518]
[1759486416083,0.90343053,4472.5,4472.4,0.82918]
[1759486416378,0.4195,4472.1,4472.0,1.42022654]
[1759486416577,0.1275,4472.0,4471.9,0.40222]
[1759486416783,0.8651,4472.0,4471.9,0.62622]
[1759486416983,0.8651,4472.0,4471.9,0.84152]
[1759486417181,0.7376,4472.0,4471.9,1.36942]
[1759486422184,0.7376,4472.0,4471.9,1.14542]
[1759486422384,0.7376,4472.0,4471.9,1.36942]
[1759486422688,0.8651,4472.0,4471.9,1.36942]
[1759486424292,0.7376,4472.0,4471.9,1.36942]
[1759486431893,0.8651,4472.0,4471.9,1.36942]
[1759486435597,0.2011,4472.2,4472.1,0.84081]
[1759486435893,0.1788,4472.2,4472.1,1.36941]
[1759486436092,0.53583053,4472.5,4472.4,1.14538]
[1759486436294,0.53583053,4472.5,4472.4,2.57554401]
[1759486436999,0.73923053,4472.5,4472.4,2.57554401]
[1759486438498,0.73923053,4472.5,4472.4,2.35154401]
[1759486438694,0.86673053,4472.5,4472.4,2.57554401]
[1759486442212,0.00163053,4472.5,4472.4,7.57554401]
[1759486442403,0.18090405,4472.7,4472.6,1.14406]
[1759486442705,0.00210405,4472.7,4472.6,77.04806]
[1759486443405,0.0015834,4472.7,4472.6,41.94406]
[1759486443705,0.0015834,4472.7,4472.6,77.04806]
[1759486444806,0.0015834,4472.7,4472.6,41.94406]
[1759486444999,0.0015834,4472.7,4472.6,77.04706]
[1759486445305,0.0015834,4472.7,4472.6,78.65244886]
[1759486446405,0.0015834,4472.7,4472.6,77.04706]
[1759486447905,0.0015834,4472.7,4472.6,41.94406]
[1759486448103,0.0015834,4472.7,4472.6,77.04506]
[1759486448510,0.0015834,4472.7,4472.6,41.94406]
[1759486448705,0.0015834,4472.7,4472.6,77.04506]
[1759486451006,0.0015834,4472.7,4472.6,41.94406]
[1759486451209,0.3162834,4472.7,4472.6,77.04306]
[1759486451513,0.3162834,4472.7,4472.6,36.24306]
[1759486452212,0.1788,4472.9,4472.8,0.4279]
[1759486452508,0.1275,4474.0,4473.4,0.4279]
[1759486452509,0.3147,4473.8,4473.4,0.4279]
[1759486452714,0.5207,4473.8,4473.7,1.14396]
[1759486452912,0.5207,4473.8,4473.7,1.36796]
[1759486453217,0.52316208,4473.8,4473.7,1.36796]
[1759486453406,0.00246208,4473.8,4473.7,1.36796]
[1759486456816,0.3147,4474.4,4474.3,1.14391]
[1759486457013,0.3147,4474.4,4474.3,1.36791]
[1759486457719,0.52275389,4474.4,4474.3,1.37062523]
[1759486458918,0.52275389,4474.4,4474.3,1.14662523]
[1759486459221,0.52275389,4474.4,4474.3,1.37062523]
[1759486460725,0.74255389,4474.4,4474.3,1.14662523]
[1759486460913,0.74255389,4474.4,4474.3,1.37062523]
[1759486467625,0.52275389,4474.4,4474.3,1.37062523]
[1759486467825,0.31675389,4474.4,4474.3,1.37062523]
[1759486468122,0.00205389,4474.4,4474.3,1.37062523]
[1759486480742,0.00205389,4474.4,4474.3,6.37062523]
[1759486482042,0.00205389,4474.4,4474.3,6.14662523]
[1759486482241,0.00205389,4474.4,4474.3,41.23162523]
[1759486482443,0.00205389,4474.4,4474.3,36.23062523]
[1759486486044,0.00205389,4474.4,4474.3,39.43842523]
[1759486487041,0.00205389,4474.4,4474.3,36.23062523]
[1759486487243,0.00205389,4474.4,4474.3,39.43842523]
[1759486487437,0.4534,4475.0,4474.9,1.13366]
[1759486487637,0.1431,4475.0,4474.9,4.56546]
[1759486488341,0.14558834,4475.0,4474.9,4.56546]
[1759486489546,0.00248834,4475.0,4474.9,4.56546]
[1759486490551,0.31278834,4475.0,4474.9,4.56546]
[1759486492050,0.53048834,4475.0,4474.9,4.56546]
[1759486492649,0.00248834,4475.0,4474.9,4.56546]
[1759486493652,0.31278834,4475.0,4474.9,4.34146]
[1759486493850,0.53048834,4475.0,4474.9,39.42246]
[1759486495255,0.00248834,4475.0,4474.9,4.34146]
[1759486495556,0.53048834,4475.0,4474.9,39.42246]
[1759486498650,0.53048834,4475.0,4474.9,4.56546]
[1759486501759,0.31278834,4475.0,4474.9,4.56546]
[1759486502556,0.00248834,4475.0,4474.9,4.56546]
[1759486502747,0.0223,4475.5,4475.4,0.61531]
[1759486502951,0.0223,4475.5,4475.4,4.57361]
[1759486503154,0.3096,4476.2,4476.1,1.14175]
[1759486503357,0.3096,4476.2,4476.1,4.57355]
[1759486503760,0.31237758,4476.2,4476.1,4.57355]
[1759486505756,0.00277758,4476.2,4476.1,4.57355]
[1759486505955,0.31237758,4476.2,4476.1,4.57355]
[1759486506554,0.00277758,4476.2,4476.1,4.57355]
[1759486506961,0.0223,4476.6,4476.5,0.52681]
[1759486507265,0.0223,4476.6,4476.5,36.34471]
[1759486507562,0.0223,4476.6,4476.5,77.14471]
[1759486507959,0.02436932,4476.6,4476.5,77.14471]
[1759486508859,0.00206932,4476.6,4476.5,77.14471]
[1759486516866,0.00206932,4476.6,4476.5,78.34682378]
[1759486517067,0.00206932,4476.6,4476.5,77.14471]
[1759486518172,0.00206932,4476.6,4476.5,80.35251]
[1759486522771,0.00206932,4476.6,4476.5,80.34151]
[1759486523271,0.00206932,4476.6,4476.5,81.54362378]
[1759486526173,0.00206932,4476.6,4476.5,80.34151]
[1759486527168,0.5428,4477.6,4477.5,0.60782]
[1759486527374,0.5428,4477.6,4477.5,4.58152]
[1759486528272,0.54492701,4477.6,4477.5,4.58364982]
[1759486528968,0.00212701,4477.6,4477.5,4.70624982]
[1759486529582,0.7547,4479.4,4479.3,0.2061]
[1759486529876,0.7547,4479.4,4479.3,3.4318]
[1759486530473,0.75702732,4479.4,4479.3,3.4318]
[1759486530672,0.75702732,4479.4,4479.3,3.6379]
[1759486530874,0.75702732,4479.4,4479.3,4.1798]
[1759486531473,0.54512732,4479.4,4479.3,4.1798]
[1759486532184,0.00232732,4479.4,4479.3,4.1798]
[1759486532680,0.00232732,4479.4,4479.3,39.0188]
[1759486532880,0.00232732,4479.4,4479.3,3.9558]
[1759486533081,0.00232732,4479.4,4479.3,39.0178]
[1759486537683,0.53402732,4479.4,4479.3,39.0108]
[1759486537883,0.53402732,4479.4,4479.3,38.6864]
[1759486538289,0.53402732,4479.4,4479.3,39.01]
[1759486538583,0.73932732,4479.4,4479.3,3.4328]
[1759486539085,0.73932732,4479.4,4479.3,3.6372]
[1759486539889,0.73932732,4479.4,4479.3,4.1813]
[1759486540282,0.00232732,4479.4,4479.3,4.1813]
[1759486540790,7.32e-06,4479.4,4479.3,4.1813]
[1759486543989,0.73700732,4479.4,4479.3,3.9563]
[1759486544291,0.53170732,4479.4,4479.3,39.0053]
[1759486544590,7.32e-06,4479.4,4479.3,38.6817]
[1759486546883,7.32e-06,4479.4,4479.3,39.08326]
[1759486547084,7.32e-06,4479.4,4479.3,4.03426]
[1759486547085,0.41610732,4479.4,4479.3,4.03426]
[1759486547290,0.41610732,4479.4,4479.3,39.40486]
[1759486547291,0.73700732,4479.4,4479.3,39.40486]
[1759486548395,0.73700732,4479.4,4479.3,4.35786]
[1759486548596,0.73700732,4479.4,4479.3,4.58286]
[1759486548796,0.73700732,4479.4,4479.3,4.35786]
[1759486548999,0.73700732,4479.4,4479.3,4.58286]
[1759486549697,0.73700732,4479.4,4479.3,4.35786]
[1759486549897,0.73700732,4479.4,4479.3,4.25926]
[1759486550195,0.73700732,4479.4,4479.3,4.58286]
[1759486551298,0.73700732,4479.4,4479.3,4.1813]
[1759486551603,5.73700732,4479.4,4479.3,4.03876]
[1759486552100,5.73700732,4479.4,4479.3,3.81376]
[1759486552300,5.73700732,4479.4,4479.3,4.03876]
[1759486554203,5.73700732,4479.4,4479.3,3.81376]
[1759486554502,5.73700732,4479.4,4479.3,4.03876]
[1759486555203,5.73700732,4479.4,4479.3,3.81376]
[1759486555503,5.73700732,4479.4,4479.3,4.03876]
[1759486555696,5.73700732,4479.4,4479.3,3.6372]
[1759486555900,5.73700732,4479.4,4479.3,3.4328]
[1759486559300,5.73700732,4479.4,4479.3,3.9608]
[1759486559804,5.73700732,4479.4,4479.3,4.36236]
[1759486560004,5.73700732,4479.4,4479.3,4.13736]
[1759486560308,5.73700732,4479.4,4479.3,4.58286]
[1759486561805,5.73700732,4479.4,4479.3,4.1813]
[1759486562500,5.73700732,4479.4,4479.3,3.8577]
[1759486562701,5.73700732,4479.4,4479.3,3.4328]
[1759486565806,5.73700732,4479.4,4479.3,3.2078]
[1759486566008,5.73700732,4479.4,4479.3,3.4328]
[1759486567308,5.73700732,4479.4,4479.3,3.2078]
[1759486567508,5.73700732,4479.4,4479.3,3.4328]
[1759486569210,5.73700732,4479.4,4479.3,3.2078]
[1759486569411,5.73700732,4479.4,4479.3,3.4328]
[1759486574420,5.73700732,4479.4,4479.3,3.2078]
[1759486574714,5.73700732,4479.4,4479.3,2.44703026]
[1759486574715,6.21074854,4479.4,4479.3,2.44703026]
[1759486574907,0.6093,4478.4,4478.3,3.5378]
[1759486575105,0.6093,4478.4,4478.3,3.7628]
[1759486575915,0.6093,4478.4,4478.3,0.555]
[1759486576106,0.6093,4478.4,4478.3,0.33]
[1759486576310,0.6093,4478.4,4478.3,0.555]
[1759486577306,0.6093,4478.4,4478.3,0.33]
[1759486577512,0.6093,4478.4,4478.3,0.225]
[1759486578914,5.6093,4478.4,4478.1,0.33]
[1759486579115,0.4302,4477.9,4477.5,0.33212982]
[1759486579420,0.6093,4477.6,4477.5,0.68722982]
[1759486579608,0.4302,4477.6,4477.5,1.13492982]
[1759486581316,0.6093,4477.6,4477.5,0.33212982]
[1759486581510,0.6093,4477.6,4477.5,0.55712982]
[1759486581720,0.6093,4477.6,4477.5,0.68852982]
[1759486581921,0.6093,4477.6,4477.5,0.91222982]
[1759486582216,0.4302,4477.6,4477.5,0.91222982]
[1759486582916,0.2219,4477.6,4477.5,1.13492982]
[1759486584521,0.4525,4478.1,4478.0,0.9078]
[1759486584720,0.0223,4478.1,4478.0,1.1328]
[1759486584920,0.1791,4478.8,4478.2,0.33]
[1759486585121,0.1791,4478.8,4478.1,0.40167]
[1759486585122,0.2219,4478.4,4478.3,1.0014]
[1759486587221,0.4302,4478.4,4478.3,0.7764]
[1759486587419,0.6093,4478.4,4478.3,1.0014]
[1759486587826,0.4302,4478.4,4478.3,1.0014]
[1759486592015,0.2243,4478.8,4478.7,0.2051]
[1759486592330,0.4131,4478.8,4478.7,0.9674]
[1759486592920,0.5925,4478.8,4478.7,0.7441]
[1759486594532,3.2078,4479.0,4478.8,0.314]
[1759486594732,0.202,4478.9,4478.8,0.7424]
[1759486595633,0.67502865,4478.9,4478.8,0.7424]
[1759486600422,0.47302865,4478.9,4478.8,0.7424]
[1759486602433,0.67502865,4478.9,4478.8,0.7424]
[1759486603132,0.88612865,4478.9,4478.8,0.7424]
[1759486603528,0.67502865,4478.9,4478.8,0.7424]
[1759486603734,0.47302865,4478.9,4478.8,0.7424]
[1759486606036,0.67502865,4478.9,4478.8,0.7424]
[1759486606234,0.88612865,4478.9,4478.8,0.7424]
[1759486611541,0.67502865,4478.9,4478.8,0.7424]
[1759486611837,0.88612865,4478.9,4478.8,0.7424]
[1759486612441,0.88612865,4478.9,4478.8,0.9674]
[1759486614533,1.06552865,4478.9,4478.8,0.7424]
[1759486614739,1.06552865,4478.9,4478.8,0.9674]
[1759486615132,0.88612865,4478.9,4478.8,0.9674]
[1759486622451,0.67502865,4478.9,4478.8,0.9674]
[1759486623752,0.88092865,4478.9,4478.8,0.5191]
[1759486624052,0.88092865,4478.9,4478.8,0.7418]
[1759486624847,0.4297,4478.7,4478.6,0.3095]
[1759486625055,0.6094,4478.7,4478.6,0.3095]
[1759486625355,1.08242865,4478.7,4478.6,0.3095]
[1759486626454,1.08242865,4478.7,4478.6,0.5296]
[1759486632458,0.90272865,4478.7,4478.6,0.5296]
[1759486634755,0.9051981,4478.7,4478.6,0.5296]
[1759486635750,1.0848981,4478.7,4478.6,0.5296]
[1759486635956,0.9051981,4478.7,4478.6,0.5296]
[1759486636261,0.4754981,4478.7,4478.6,0.7523]
[1759486637163,0.4754981,4478.7,4478.6,1.15392]
[1759486638867,0.4754981,4478.7,4478.6,1.37892]
[1759486642567,0.9051981,4478.7,4478.6,0.93122]